fUST/lending_fUST_20241108
["ID","MTS","AMOUNT","RATE_DAILY","PERIOD"]
[341641121,1731054647670,-500.0,0.00022739,2]
[341641122,1731054647682,-500.0,0.00022739,2]
[341641123,1731054647693,-500.0,0.00022739,2]
[341641124,1731054647705,-500.0,0.00022739,2]
[341641125,1731054647716,-713.44,0.00022739,2]
[341641126,1731054647727,-500.0,0.00022739,2]
[341641127,1731054647738,-500.0,0.00022739,2]
[341641128,1731054647749,-263.2837069,0.00022739,2]
[341641129,1731054647760,-305.86245,0.00022739,7]
[341641130,1731054647771,-305.86245,0.00022739,7]
[341641131,1731054647782,-500.0,0.00022739,2]
[341641132,1731054647793,-500.0,0.00022739,2]
[341641133,1731054647804,-500.0,0.00022739,2]
[341641134,1731054647815,-500.0,0.00022739,2]
[341641135,1731054647826,-500.0,0.00022739,2]
[341641136,1731054647837,-1591.58,0.00022739,2]
[341641137,1731054647848,-500.0,0.00022739,2]
[341641138,1731054647859,-500.0,0.00022739,2]
[341641139,1731054647870,-559.04,0.00022739,2]
[341641140,1731054647881,-500.0,0.00022739,2]
[341641141,1731054647892,-500.0,0.00022739,2]
[341641142,1731054647903,-649.9,0.00022739,2]
[341641143,1731054647915,-500.0,0.00022739,2]
[341641144,1731054647926,-500.0,0.00022739,2]
[341641145,1731054647937,-789.48,0.00022739,2]
[341641146,1731054647949,-500.0,0.00022739,2]
[341641147,1731054647960,-1466.2,0.00022739,2]
[341641148,1731054647971,-500.0,0.00022739,2]
[341641149,1731054647982,-500.0,0.00022739,2]
[341641150,1731054647993,-500.0,0.00022739,2]
[341641151,1731054648004,-500.0,0.00022739,2]
[341641152,1731054648015,-500.0,0.00022739,2]
[341641153,1731054648027,-207.60230145,0.00022739,2]
[341641154,1731054648039,-500.0,0.00022739,2]
[341641155,1731054648051,-500.0,0.00022739,2]
[341641156,1731054648063,-500.0,0.00022739,2]
[341641157,1731054648195,-500.0,0.00022739,2]
[341641158,1731054648204,-194.29626354,0.00022739,2]
[341641159,1731054648214,-183.385898,0.00022739,7]
[341641160,1731054648224,-151.0,0.00022739,7]
[341641161,1731054648233,-500.0,0.00022739,2]
[341641162,1731054648242,-750.04,0.00022739,2]
[341641163,1731054648251,-500.0,0.00022739,2]
[341641164,1731054648261,-500.0,0.00022739,2]
[341641165,1731054648270,-1065.625991,0.00022739,7]
[341641166,1731054648280,-1065.625991,0.00022739,7]
[341641167,1731054648290,-500.0,0.00022739,2]
[341641168,1731054648299,-500.0,0.00022739,2]
[341641169,1731054648309,-151.0,0.00022739,7]
[341641170,1731054648318,-552.99,0.00022739,2]
[341641171,1731054648327,-500.0,0.00022739,2]
[341641172,1731054648336,-290.240081,0.00022739,7]
[341641173,1731054648346,-290.240081,0.00022739,7]
[341641174,1731054648355,-500.0,0.00022739,2]
[341641175,1731054648364,-5328.58,0.00022739,2]
[341641176,1731054648373,-290.240081,0.00022739,7]
[341641177,1731054648383,-290.240081,0.00022739,7]
[341641178,1731054648391,-500.0,0.00022739,2]
[341641179,1731054648401,-151.0,0.00022739,7]
[341641180,1731054648410,-151.0,0.00022739,7]
[341641181,1731054648418,-200.377639,0.00022739,7]
[341641182,1731054648427,-200.377639,0.00022739,7]
[341641183,1731054648436,-200.377639,0.00022739,7]
[341641184,1731054648449,-200.377639,0.00022739,7]
[341641185,1731054648458,-500.0,0.00022739,2]
[341641186,1731054648467,-151.0,0.00022739,7]
[341641187,1731054648477,-500.0,0.00022739,2]
[341641188,1731054648486,-500.0,0.00022739,2]
[341641189,1731054648495,-500.0,0.00022739,2]
[341641190,1731054648504,-9618.57,0.00022739,2]
[341641191,1731054648513,-500.0,0.00022739,2]
[341641192,1731054648522,-961.72,0.00022739,2]
[341641193,1731054648531,-222.209505,0.00022739,7]
[341641194,1731054648540,-283.767914,0.00022739,7]
[341641195,1731054648549,-222.209505,0.00022739,7]
[341641196,1731054648560,-500.0,0.00022739,2]
[341641197,1731054648569,-283.767914,0.00022739,7]
[341641198,1731054648578,-942.93,0.00022739,2]
[341641199,1731054648587,-500.0,0.00022739,2]
[341641200,1731054648596,-500.0,0.00022739,2]
[341641201,1731054648605,-550.57,0.00022739,2]
[341641202,1731054648614,-500.0,0.00022739,2]
[341641203,1731054648624,-683.0,0.00022739,2]
[341641204,1731054648633,-500.0,0.00022739,2]
[341641205,1731054648642,-500.0,0.00022739,2]
[341641206,1731054648652,-282.07478881,0.00022739,2]
[341641207,1731054648661,-151.0,0.00022739,7]
[341641208,1731054648670,-151.0,0.00022739,7]
[341641209,1731054648679,-231.285017,0.00022739,7]
[341641210,1731054648688,-231.285017,0.00022739,7]
[341641211,1731054648697,-464.969724,0.00022739,7]
[341641212,1731054648706,-464.969724,0.00022739,7]
[341641213,1731054648715,-464.969724,0.00022739,7]
[341641214,1731054648725,-500.0,0.00022739,2]
[341641215,1731054648734,-464.969724,0.00022739,7]
[341641216,1731054648743,-342.790446,0.00022739,7]
[341641217,1731054648752,-500.0,0.00022739,2]
[341641218,1731054648761,-342.790446,0.00022739,7]
[341641219,1731054648771,-500.0,0.00022739,2]
[341641220,1731054648780,-342.790446,0.00022739,7]
[341641221,1731054648789,-342.790446,0.00022739,7]
[341641222,1731054648798,-500.0,0.00022739,2]
[341641223,1731054648808,-500.0,0.00022739,2]
[341641224,1731054648817,-684.63,0.00022739,2]
[341641225,1731054648826,-500.0,0.00022739,2]
[341641226,1731054648836,-387.96142,0.00022739,7]
[341641227,1731054648845,-151.0,0.00022739,7]
[341641228,1731054648855,-151.0,0.00022739,7]
[341641229,1731054648864,-387.96142,0.00022739,7]
[341641230,1731054648873,-500.0,0.00022739,2]
[341641231,1731054648882,-151.0,0.00022739,7]
[341641232,1731054648892,-151.0,0.00022739,7]
[341641233,1731054648901,-284.482402,0.00022739,7]
[341641234,1731054648910,-284.482402,0.00022739,7]
[341641235,1731054648919,-500.0,0.00022739,2]
[341641236,1731054648928,-284.482402,0.00022739,7]
[341641237,1731054648937,-284.482402,0.00022739,7]
[341641238,1731054648946,-1222.926847,0.00022739,7]
[341641239,1731054648956,-1222.926847,0.00022739,7]
[341641240,1731054648965,-1222.926847,0.00022739,7]
[341641241,1731054648974,-1222.926847,0.00022739,7]
[341641242,1731054648983,-500.0,0.00022739,2]
[341641243,1731054648992,-151.0,0.00022739,7]
[341641244,1731054649001,-245.787143,0.00022739,7]
[341641245,1731054649010,-4003.83,0.00022739,2]
[341641246,1731054649020,-621.17,0.00022739,2]
[341641247,1731054649029,-500.0,0.00022739,2]
[341641248,1731054649038,-500.0,0.00022739,2]
[341641249,1731054649047,-500.0,0.00022739,2]
[341641250,1731054649058,-500.0,0.00022739,2]
[341641251,1731054649067,-580.42209627,0.00022739,2]
[341641252,1731054649076,-150.24173145,0.00022739,2]
[341641253,1731054649086,-500.0,0.00022739,2]
[341641254,1731054649095,-500.0,0.00022739,2]
[341641255,1731054649107,-500.0,0.00022739,2]
[341641256,1731054649117,-802.77,0.00022739,2]
[341641257,1731054649126,-500.0,0.00022739,2]
[341641258,1731054649135,-500.0,0.00022739,2]
[341641259,1731054649145,-509.84,0.00022739,2]
[341641260,1731054649154,-500.0,0.00022739,2]
[341641261,1731054649164,-500.0,0.00022739,2]
[341641262,1731054649173,-3357.25,0.00022739,2]
[341641263,1731054649184,-4909.91,0.00022739,2]
[341641264,1731054649193,-500.0,0.00022739,2]
[341641265,1731054649203,-1008.970124,0.00022739,7]
[341641266,1731054649212,-1008.970124,0.00022739,7]
[341641267,1731054649221,-500.0,0.00022739,2]
[341641268,1731054649230,-1281.41,0.00022739,2]
[341641269,1731054649239,-1008.970124,0.00022739,7]
[341641270,1731054649248,-1008.970124,0.00022739,7]
[341641271,1731054649257,-151.0,0.00022739,7]
[341641272,1731054649266,-500.0,0.00022739,2]
[341641273,1731054649276,-151.0,0.00022739,7]
[341641274,1731054649285,-151.0,0.00022739,7]
[341641275,1731054649294,-151.0,0.00022739,7]
[341641276,1731054649303,-190.608239,0.00022739,7]
[341641277,1731054649312,-190.608239,0.00022739,7]
[341641278,1731054649321,-1146.35,0.00022739,2]
[341641279,1731054649331,-151.0,0.00022739,7]
[341641280,1731054649340,-190.608239,0.00022739,7]
[341641281,1731054649349,-164.401716,0.00022739,7]
[341641282,1731054649359,-190.608239,0.00022739,7]
[341641283,1731054649367,-500.0,0.00022739,2]
[341641284,1731054649377,-500.0,0.00022739,2]
[341641285,1731054649386,-322.617262,0.00022739,7]
[341641286,1731054649395,-322.617262,0.00022739,7]
[341641287,1731054649404,-322.617262,0.00022739,7]
[341641288,1731054649413,-322.617262,0.00022739,7]
[341641289,1731054649422,-500.0,0.00022739,2]
[341641290,1731054649431,-500.0,0.00022739,2]
[341641291,1731054649440,-500.0,0.00022739,2]
[341641292,1731054649450,-12170.22,0.00022739,2]
[341641293,1731054649459,-514.924903,0.00022739,7]
[341641294,1731054649468,-514.924903,0.00022739,7]
[341641295,1731054649477,-500.0,0.00022739,2]
[341641296,1731054649486,-613.27546781,0.00022739,2]
[341641297,1731054649496,-514.924903,0.00022739,7]
[341641298,1731054649505,-514.924903,0.00022739,7]
[341641299,1731054649514,-178.485419,0.00022739,7]
[341641300,1731054649523,-151.0,0.00022739,7]
[341641301,1731054649532,-178.485419,0.00022739,7]
[341641302,1731054649541,-532.19404274,0.00022739,2]
[341641303,1731054649550,-151.0,0.00022739,7]
[341641304,1731054649561,-166.666666,0.00022944,2]
[341641305,1731054649570,-2019.16079209,0.00023,2]
[341641306,1731054649579,-500.0,0.00023013,2]
[341641307,1731054649588,-500.0,0.00023013,2]
[341641308,1731054649597,-548.93722244,0.00023013,2]
[341641309,1731054649606,-314.21164392,0.00023013,2]
[341641310,1731054649615,-500.0,0.00023013,2]
[341641311,1731054649624,-500.0,0.00023013,2]
[341641312,1731054649633,-500.0,0.00023013,2]
[341641313,1731054649642,-500.0,0.00023013,2]
[341641314,1731054649652,-500.0,0.00023013,2]
[341641315,1731054649661,-713.44,0.00023013,2]
[341641316,1731054649670,-500.0,0.00023013,2]
[341641317,1731054649680,-500.0,0.00023013,2]
[341641318,1731054649689,-305.86245,0.00023013,7]
[341641319,1731054649699,-305.86245,0.00023013,7]
[341641320,1731054649708,-500.0,0.00023013,2]
[341641321,1731054649717,-500.0,0.00023013,2]
[341641322,1731054649726,-500.0,0.00023013,2]
[341641323,1731054649735,-500.0,0.00023013,2]
[341641324,1731054649744,-500.0,0.00023013,2]
[341641325,1731054649753,-1591.58,0.00023013,2]
[341641326,1731054649763,-500.0,0.00023013,2]
[341641327,1731054649771,-500.0,0.00023013,2]
[341641328,1731054649780,-559.04,0.00023013,2]
[341641329,1731054649790,-485.91707152,0.00023013,2]
[341641330,1731054649799,-500.0,0.00023013,2]
[341641331,1731054649808,-649.9,0.00023013,2]
[341641332,1731054649818,-500.0,0.00023013,2]
[341641333,1731054649827,-500.0,0.00023013,2]
[341641334,1731054649837,-789.48,0.00023013,2]
[341641335,1731054649846,-500.0,0.00023013,2]
[341641336,1731054649856,-1466.2,0.00023013,2]
[341641337,1731054649865,-500.0,0.00023013,2]
[341641338,1731054649874,-500.0,0.00023013,2]
[341641339,1731054649884,-500.0,0.00023013,2]
[341641340,1731054649893,-500.0,0.00023013,2]
[341641341,1731054649902,-500.0,0.00023013,2]
[341641342,1731054649912,-500.0,0.00023013,2]
[341641343,1731054649921,-500.0,0.00023013,2]
[341641344,1731054649930,-500.0,0.00023013,2]
[341641345,1731054649939,-500.0,0.00023013,2]
[341641346,1731054649949,-151.0,0.00023013,7]
[341641347,1731054649959,-500.0,0.00023013,2]
[341641348,1731054649969,-750.04,0.00023013,2]
[341641349,1731054649978,-500.0,0.00023013,2]
[341641350,1731054649988,-500.0,0.00023013,2]
[341641351,1731054649997,-1065.625991,0.00023013,7]
[341641352,1731054650007,-1065.625991,0.00023013,7]
[341641353,1731054650017,-565.41547369,0.00023013,2]
[341641354,1731054650026,-500.0,0.00023013,2]
[341641355,1731054650035,-151.0,0.00023013,7]
[341641356,1731054650045,-552.99,0.00023013,2]
[341641357,1731054650054,-500.0,0.00023013,2]
[341641358,1731054650063,-290.240081,0.00023013,7]
[341641359,1731054650073,-5328.58,0.00023013,2]
[341641360,1731054650083,-290.240081,0.00023013,7]
[341641361,1731054650093,-500.0,0.00023013,2]
[341641362,1731054650107,-151.0,0.00023013,7]
[341641363,1731054650117,-200.377639,0.00023013,7]
[341641364,1731054650126,-200.377639,0.00023013,7]
[341641365,1731054650135,-174.73132111,0.00023013,2]
[341641366,1731054650145,-151.0,0.00023013,7]
[341641367,1731054650155,-151.0,0.00023013,7]
[341641368,1731054650164,-500.0,0.00023013,2]
[341641369,1731054650174,-500.0,0.00023013,2]
[341641370,1731054650185,-500.0,0.00023013,2]
[341641371,1731054650194,-9618.57,0.00023013,2]
[341641372,1731054650204,-500.0,0.00023013,2]
[341641373,1731054650213,-961.72,0.00023013,2]
[341641374,1731054650222,-222.209505,0.00023013,7]
[341641375,1731054650231,-222.209505,0.00023013,7]
[341641376,1731054650240,-283.767914,0.00023013,7]
[341641377,1731054650249,-283.767914,0.00023013,7]
[341641378,1731054650258,-222.209505,0.00023013,7]
[341641379,1731054650267,-222.209505,0.00023013,7]
[341641380,1731054650276,-500.0,0.00023013,2]
[341641381,1731054650285,-283.767914,0.00023013,7]
[341641382,1731054650294,-283.767914,0.00023013,7]
[341641383,1731054650304,-942.93,0.00023013,2]
[341641384,1731054650313,-500.0,0.00023013,2]
[341641385,1731054650323,-550.57,0.00023013,2]
[341641386,1731054650332,-500.0,0.00023013,2]
[341641387,1731054650341,-683.0,0.00023013,2]
[341641388,1731054650350,-500.0,0.00023013,2]
[341641389,1731054650360,-500.0,0.00023013,2]
[341641390,1731054650369,-151.0,0.00023013,7]
[341641391,1731054650378,-231.285017,0.00023013,7]
[341641392,1731054650387,-231.285017,0.00023013,7]
[341641393,1731054650397,-231.285017,0.00023013,7]
[341641394,1731054650489,-231.285017,0.00023013,7]
[341641395,1731054650499,-464.969724,0.00023013,7]
[341641396,1731054650508,-500.0,0.00023013,2]
[341641397,1731054650518,-464.969724,0.00023013,7]
[341641398,1731054650527,-500.0,0.00023013,2]
[341641399,1731054650536,-342.790446,0.00023013,7]
[341641400,1731054650546,-500.0,0.00023013,2]
[341641401,1731054650558,-342.790446,0.00023013,7]
[341641402,1731054650570,-500.0,0.00023013,2]
[341641403,1731054650580,-684.63,0.00023013,2]
[341641404,1731054650589,-500.0,0.00023013,2]
[341641405,1731054650598,-387.96142,0.00023013,7]
[341641406,1731054650608,-387.96142,0.00023013,7]
[341641407,1731054650617,-387.96142,0.00023013,7]
[341641408,1731054650626,-387.96142,0.00023013,7]
[341641409,1731054650635,-500.0,0.00023013,2]
[341641410,1731054650645,-151.0,0.00023013,7]
[341641411,1731054650654,-151.0,0.00023013,7]
[341641412,1731054650664,-284.482402,0.00023013,7]
[341641413,1731054650673,-284.482402,0.00023013,7]
[341641414,1731054650682,-1222.926847,0.00023013,7]
[341641415,1731054650691,-1222.926847,0.00023013,7]
[341641416,1731054650700,-1222.926847,0.00023013,7]
[341641417,1731054650709,-1222.926847,0.00023013,7]
[341641418,1731054650719,-500.0,0.00023013,2]
[341641419,1731054650728,-4003.83,0.00023013,2]
[341641420,1731054650738,-621.17,0.00023013,2]
[341641421,1731054650747,-411.05155645,0.00023013,2]
[341641422,1731054650756,-500.0,0.00023013,2]
[341641423,1731054650766,-500.0,0.00023013,2]
[341641424,1731054650775,-500.0,0.00023013,2]
[341641425,1731054650783,-500.0,0.00023013,2]
[341641426,1731054650793,-500.0,0.00023013,2]
[341641427,1731054650802,-500.0,0.00023013,2]
[341641428,1731054650812,-802.77,0.00023013,2]
[341641429,1731054650821,-500.0,0.00023013,2]
[341641430,1731054650830,-500.0,0.00023013,2]
[341641431,1731054650839,-509.84,0.00023013,2]
[341641432,1731054650849,-558.27227674,0.00023013,2]
[341641433,1731054650858,-500.0,0.00023013,2]
[341641434,1731054650868,-3357.25,0.00023013,2]
[341641435,1731054650877,-4909.91,0.00023013,2]
[341641436,1731054650887,-500.0,0.00023013,2]
[341641437,1731054650896,-1008.970124,0.00023013,7]
[341641438,1731054650905,-500.0,0.00023013,2]
[341641439,1731054650914,-1281.41,0.00023013,2]
[341641440,1731054650923,-1008.970124,0.00023013,7]
[341641441,1731054650932,-500.0,0.00023013,2]
[341641442,1731054650942,-151.0,0.00023013,7]
[341641443,1731054650951,-151.0,0.00023013,7]
[341641444,1731054650960,-151.0,0.00023013,7]
[341641445,1731054650970,-190.608239,0.00023013,7]
[341641446,1731054650979,-1146.35,0.00023013,2]
[341641447,1731054650988,-190.608239,0.00023013,7]
[341641448,1731054650998,-182.51408584,0.00023013,2]
[341641449,1731054651007,-500.0,0.00023013,2]
[341641450,1731054651016,-322.617262,0.00023013,7]
[341641451,1731054651025,-322.617262,0.00023013,7]
[341641452,1731054651034,-500.0,0.00023013,2]
[341641453,1731054651043,-500.0,0.00023013,2]
[341641454,1731054651052,-500.0,0.00023013,2]
[341641455,1731054651062,-12170.22,0.00023013,2]
[341641456,1731054651071,-514.924903,0.00023013,7]
[341641457,1731054651081,-500.0,0.00023013,2]
[341641458,1731054651090,-514.924903,0.00023013,7]
[341641459,1731054651102,-178.485419,0.00023013,7]
[341641460,1731054651113,-151.0,0.00023013,7]
[341641461,1731054651122,-500.0,0.0002305,2]
[341641462,1731054651131,-500.0,0.0002305,2]
[341641463,1731054651140,-500.0,0.0002305,2]
[341641464,1731054651150,-500.0,0.0002305,2]
[341641465,1731054651159,-500.0,0.0002305,2]
[341641466,1731054651167,-501.12172304,0.0002305,2]
[341641467,1731054651178,-197946.3657599,0.000231,2]
[341641468,1731054651434,-500.0,0.00021917,2]
[341641469,1731054651443,-500.0,0.00021917,2]
[341641470,1731054651452,-178.485419,0.00022191,7]
[341641471,1731054651461,-500.0,0.00022191,2]
[341641472,1731054651470,-178.485419,0.00022465,7]
[341641473,1731054651479,-178.485419,0.00022465,7]
[341641474,1731054651488,-522.27278293,0.00022465,2]
[341641475,1731054651497,-178.485419,0.00022739,7]
[341641476,1731054651506,-178.485419,0.00022739,7]
[341641477,1731054651516,-3019.13805483,0.000231,2]
[341641478,1731054651868,-282.23019186,0.00022191,2]
[341641481,1731054687807,301.13,0.00020843,2]
[341641485,1731054752587,174.309739,0.00013973,2]
[341641488,1731054862986,1012.0,0.00032242,30]
[341641489,1731055010916,200.0,0.00020843,2]
[341641492,1731055196388,-300.0,0.00021327,2]
[341641493,1731055196412,-300.0,0.00021327,2]
[341641494,1731055196435,-10700.069039,0.00021328,2]
[341641495,1731055196460,-1096.49018241,0.00021817,2]
[341641496,1731055196484,-227.85937664,0.00021817,2]
[341641497,1731055196508,-455.4,0.00021907,3]
[341641498,1731055196534,-500.0,0.00021916,2]
[341641499,1731055196558,-500.0,0.00021916,2]
[341641500,1731055196581,-624.60043658,0.00021916,2]
[341641501,1731055196606,-500.0,0.00021916,2]
[341641502,1731055196629,-187.62506239,0.00021917,2]
[341641503,1731055196654,-541.14863781,0.00021917,2]
[341641504,1731055196677,-500.0,0.00021917,2]
[341641505,1731055196700,-290.42593584,0.00021917,2]
[341641506,1731055196725,-500.0,0.00021917,2]
[341641507,1731055196749,-500.0,0.00021917,2]
[341641508,1731055196773,-500.0,0.00021917,2]
[341641509,1731055196796,-500.0,0.00021917,2]
[341641510,1731055196820,-500.0,0.00021917,2]
[341641511,1731055196843,-500.0,0.00021917,2]
[341641512,1731055196867,-500.0,0.00021917,2]
[341641513,1731055196892,-500.0,0.00021917,2]
[341641514,1731055196915,-569.31408041,0.00021917,2]
[341641515,1731055196938,-654.77,0.00021917,2]
[341641516,1731055196961,-500.0,0.00021917,2]
[341641517,1731055196985,-500.0,0.00021917,2]
[341641518,1731055197010,-500.0,0.00021917,2]
[341641519,1731055197038,-500.0,0.00021917,2]
[341641520,1731055197061,-500.0,0.00021917,2]
[341641521,1731055197086,-363.57,0.00021917,2]
[341641522,1731055197109,-500.0,0.00021917,2]
[341641523,1731055197132,-500.0,0.00021917,2]
[341641524,1731055197155,-500.0,0.00021917,2]
[341641525,1731055197180,-500.0,0.00021917,2]
[341641526,1731055197204,-520.7361692,0.00021917,2]
[341641527,1731055197227,-370.72286588,0.00021917,2]
[341641528,1731055197252,-500.0,0.00021917,2]
[341641529,1731055197275,-500.0,0.00021917,2]
[341641530,1731055197303,-500.0,0.00021917,2]
[341641531,1731055197327,-200.0,0.00021917,2]
[341641532,1731055197351,-500.0,0.00021917,2]
[341641533,1731055197375,-500.0,0.00021917,2]
[341641534,1731055197397,-445.55855818,0.00021917,2]
[341641535,1731055197538,-500.0,0.00021917,2]
[341641536,1731055197565,-500.0,0.00021917,2]
[341641537,1731055197588,-500.0,0.00021917,2]
[341641538,1731055197610,-500.0,0.00021917,2]
[341641539,1731055197633,-287.38,0.00021917,2]
[341641540,1731055197657,-228.13561377,0.00021917,2]
[341641541,1731055197681,-500.0,0.00021917,2]
[341641542,1731055197704,-500.0,0.00021917,2]
[341641543,1731055197726,-500.0,0.00021917,2]
[341641544,1731055197756,-500.0,0.00021917,2]
[341641545,1731055197779,-500.0,0.00021917,2]
[341641546,1731055197804,-500.0,0.00021917,2]
[341641547,1731055197828,-500.0,0.00021917,2]
[341641548,1731055197851,-500.0,0.00021917,2]
[341641549,1731055197876,-500.0,0.00021917,2]
[341641550,1731055197901,-1325.17,0.00021917,2]
[341641551,1731055197927,-509.93859468,0.00021917,2]
[341641552,1731055197951,-500.0,0.00021917,2]
[341641553,1731055197975,-500.0,0.00021917,2]
[341641554,1731055198003,-500.0,0.00021917,2]
[341641555,1731055198026,-500.0,0.00021917,2]
[341641556,1731055198050,-635.08387429,0.00021917,2]
[341641557,1731055198073,-500.0,0.00021917,2]
[341641558,1731055198097,-500.0,0.00021917,2]
[341641559,1731055198121,-518.10076123,0.00021917,2]
[341641560,1731055198146,-500.0,0.00021917,2]
[341641561,1731055198170,-500.0,0.00021917,2]
[341641562,1731055198195,-500.0,0.00021917,2]
[341641563,1731055198219,-500.0,0.00021917,2]
[341641564,1731055198243,-500.0,0.00021917,2]
[341641565,1731055198271,-500.0,0.00021917,2]
[341641566,1731055198296,-500.0,0.00021917,2]
[341641567,1731055198319,-500.0,0.00021917,2]
[341641568,1731055198344,-500.0,0.00021917,2]
[341641569,1731055198369,-500.75432902,0.00021917,2]
[341641570,1731055198392,-500.0,0.00021917,2]
[341641571,1731055198416,-500.0,0.00021917,2]
[341641572,1731055198440,-540.08,0.00021917,2]
[341641573,1731055198466,-500.0,0.00021917,2]
[341641574,1731055198492,-500.0,0.00021917,2]
[341641575,1731055198516,-1107.06648267,0.00021917,2]
[341641576,1731055240844,-300.0,0.00021916,2]
[341641577,1731055240870,-300.0,0.00021916,2]
[341641578,1731055240893,-500.96587915,0.00021916,2]
[341641579,1731055240917,-187.6250624,0.00021917,2]
[341641580,1731055240939,-1228.93351733,0.00021917,2]
[341641581,1731055240962,-500.0,0.00021917,2]
[341641582,1731055240985,-500.0,0.00021917,2]
[341641583,1731055241010,-690.29,0.00021917,2]
[341641584,1731055241034,-517.74913293,0.00021917,2]
[341641585,1731055241057,-502.21116589,0.00021917,2]
[341641586,1731055241081,-510.06422856,0.00021917,2]
[341641587,1731055241104,-500.0,0.00021917,2]
[341641588,1731055241132,-500.0,0.00021917,2]
[341641589,1731055241157,-500.0,0.00021917,2]
[341641590,1731055241181,-500.0,0.00021917,2]
[341641591,1731055241205,-1283.55,0.00021917,2]
[341641592,1731055241229,-500.0,0.00021917,2]
[341641593,1731055241253,-500.0,0.00021917,2]
[341641594,1731055241276,-500.0,0.00021917,2]
[341641595,1731055241301,-512.27170226,0.00021917,2]
[341641596,1731055241328,-501.16094488,0.00021917,2]
[341641597,1731055241351,-264.48145153,0.00021917,2]
[341641598,1731055241376,-500.0,0.00021917,2]
[341641599,1731055241402,-500.0,0.00021917,2]
[341641600,1731055241426,-500.0,0.00021917,2]
[341641601,1731055241450,-500.0,0.00021917,2]
[341641602,1731055241474,-500.0,0.00021917,2]
[341641603,1731055241497,-242.19052032,0.00021917,2]
[341641604,1731055241521,-500.0,0.00021917,2]
[341641605,1731055241546,-500.0,0.00021917,2]
[341641606,1731055241570,-500.0,0.00021917,2]
[341641607,1731055241596,-500.0,0.00021917,2]
[341641608,1731055241621,-500.0,0.00021917,2]
[341641609,1731055241645,-500.0,0.00021917,2]
[341641610,1731055241668,-500.0,0.00021917,2]
[341641611,1731055241690,-500.0,0.00021917,2]
[341641612,1731055241713,-500.0,0.00021917,2]
[341641613,1731055241736,-500.0,0.00021917,2]
[341641614,1731055241758,-500.0,0.00021917,2]
[341641615,1731055241784,-500.0,0.00021917,2]
[341641616,1731055241807,-500.0,0.00021917,2]
[341641617,1731055241830,-500.0,0.00021917,2]
[341641618,1731055241860,-500.0,0.00021917,2]
[341641619,1731055241884,-500.0,0.00021917,2]
[341641620,1731055241908,-500.0,0.00021917,2]
[341641621,1731055241932,-500.0,0.00021917,2]
[341641622,1731055241956,-500.0,0.00021917,2]
[341641623,1731055241981,-500.0,0.00021917,2]
[341641624,1731055242006,-623.57,0.00021917,2]
[341641625,1731055242030,-500.0,0.00021917,2]
[341641626,1731055242055,-500.0,0.00021917,2]
[341641627,1731055242078,-500.0,0.00021917,2]
[341641628,1731055242103,-500.0,0.00021917,2]
[341641629,1731055242129,-500.0,0.00021917,2]